fUSD/lending_fUSD_20240129
["ID","MTS","AMOUNT","RATE_DAILY","PERIOD"]
[312970045,1706555462199,-525.38219536,0.00052054,31]
[312970046,1706555462208,-1000.0,0.00052054,2]
[312970047,1706555462218,-500.0,0.00052054,31]
[312970048,1706555462228,-150.0,0.00052054,30]
[312970049,1706555462237,-491.9571941,0.00052054,31]
[312970050,1706555462247,-538.15042342,0.00052054,31]
[312970051,1706555462256,-500.0,0.00052054,31]
[312970052,1706555462265,-500.0,0.00052054,31]
[312970053,1706555462274,-500.0,0.00052054,31]
[312970054,1706555462283,-500.0,0.00052054,31]
[312970055,1706555462292,-500.0,0.00052054,31]
[312970056,1706555462301,-500.0,0.00052054,31]
[312970057,1706555462310,-272.26307442,0.00052054,31]
[312970058,1706555462319,-505.2350572,0.00052054,31]
[312970059,1706555462329,-645.9813581,0.00052054,31]
[312970060,1706555462338,-188.26888839,0.00052054,31]
[312970061,1706555462347,-588.20000429,0.00052054,31]
[312970062,1706555462356,-987.96,0.00052054,31]
[312970063,1706555462366,-231.10304119,0.00052054,31]
[312970064,1706555462375,-500.0,0.00052054,31]
[312970065,1706555462388,-508.801664,0.00052054,31]
[312970066,1706555462398,-500.0,0.00052054,31]
[312970067,1706555462408,-532.20519974,0.00052054,31]
[312970068,1706555462417,-500.0,0.00052054,31]
[312970069,1706555462427,-5800.0,0.00052054,7]
[312970070,1706555462436,-344.89736711,0.00052054,31]
[312970071,1706555462445,-588.75361479,0.00052054,31]
[312970072,1706555462456,-500.0,0.00052054,31]
[312970073,1706555462466,-511.46020629,0.00052054,31]
[312970074,1706555462475,-546.94777129,0.00052054,31]
[312970075,1706555462485,-500.0,0.00052054,31]
[312970076,1706555462494,-523.86721179,0.00052054,31]
[312970077,1706555462503,-500.0,0.00052054,31]
[312970078,1706555462513,-241.42588713,0.00052054,31]
[312970079,1706555462522,-4520.8,0.00052054,31]
[312970080,1706555462647,-562.86039872,0.00052054,31]
[312970081,1706555462669,-500.0,0.00052054,31]
[312970082,1706555462678,-521.80305256,0.00052054,31]
[312970083,1706555462688,-616.92484192,0.00052054,31]
[312970084,1706555462697,-526.58499804,0.00052054,31]
[312970085,1706555462707,-500.0,0.00052054,31]
[312970086,1706555462716,-506.97916262,0.00052054,31]
[312970087,1706555462726,-571.57452854,0.00052054,31]
[312970088,1706555462735,-500.0,0.00052054,31]
[312970089,1706555462744,-664.84,0.00052054,31]
[312970090,1706555462754,-555.55866481,0.00052054,31]
[312970091,1706555462763,-500.0,0.00052054,31]
[312970092,1706555462772,-525.68799186,0.00052054,31]
[312970093,1706555462782,-500.0,0.00052054,31]
[312970094,1706555462792,-568.56600732,0.00052054,31]
[312970095,1706555462802,-500.0,0.00052054,120]
[312970096,1706555462811,-500.0,0.00052054,31]
[312970097,1706555462821,-551.94363271,0.00052054,31]
[312970098,1706555462829,-906.57,0.00052054,31]
[312970099,1706555462839,-544.30648018,0.00052054,31]
[312970100,1706555462848,-566.85562004,0.00052054,31]
[312970101,1706555462858,-528.17699178,0.00052054,31]
[312970102,1706555462867,-536.99313153,0.00052054,31]
[312970103,1706555462876,-536.89651571,0.00052054,31]
[312970104,1706555462886,-498.79223102,0.00052054,31]
[312970105,1706555462896,-524.87255292,0.00052054,31]
[312970106,1706555462905,-522.72320959,0.00052054,10]
[312970107,1706555462915,-500.0,0.00052054,31]
[312970108,1706555462924,-500.0,0.00052054,31]
[312970109,1706555462934,-510.18151786,0.00052054,31]
[312970110,1706555462944,-536.15560451,0.00052054,31]
[312970111,1706555462953,-500.0,0.00052054,31]
[312970112,1706555462963,-551.76235109,0.00052054,31]
[312970113,1706555462973,-512.27431427,0.00052054,31]
[312970114,1706555462982,-565.2696017,0.00052054,31]
[312970115,1706555462992,-500.0,0.00052054,31]
[312970116,1706555463001,-614.97,0.00052054,31]
[312970117,1706555463011,-500.0,0.00052054,31]
[312970118,1706555463020,-539.02871763,0.00052054,31]
[312970119,1706555463029,-543.47947641,0.00052054,31]
[312970120,1706555463039,-500.0,0.00052054,31]
[312970121,1706555463049,-528.92938291,0.00052054,31]
[312970122,1706555463058,-529.09655107,0.00052054,31]
[312970123,1706555463068,-4380.92,0.00052054,31]
[312970124,1706555463077,-500.0,0.00052054,31]
[312970125,1706555463087,-500.0,0.00052054,31]
[312970126,1706555463096,-538.00082518,0.00052054,31]
[312970127,1706555463106,-500.0,0.00052054,31]
[312970128,1706555463116,-4783.03,0.00052054,31]
[312970129,1706555463126,-500.0,0.00052054,14]
[312970130,1706555463136,-500.0,0.00052054,31]
[312970131,1706555463145,-558.43328084,0.00052054,31]
[312970132,1706555463154,-500.0,0.00052054,31]
[312970133,1706555463164,-500.0,0.00052054,31]
[312970134,1706555463173,-529.1076747,0.00052054,31]
[312970135,1706555463183,-1952.9,0.00052054,31]
[312970136,1706555463193,-509.66375471,0.00052054,31]
[312970137,1706555463202,-576.30790719,0.00052054,31]
[312970138,1706555463212,-4080.37,0.00052054,31]
[312970139,1706555463222,-553.47013658,0.00052054,31]
[312970140,1706555463232,-500.0,0.00052054,31]
[312970141,1706555463241,-4329.06,0.00052054,5]
[312970142,1706555463250,-1083.28,0.00052054,31]
[312970143,1706555463260,-1203.39,0.00052054,31]
[312970144,1706555463269,-500.0,0.00052054,31]
[312970145,1706555463278,-2084.44,0.00052054,31]
[312970146,1706555463287,-572.88874422,0.00052054,31]
[312970147,1706555463297,-500.0,0.00052054,31]
[312970148,1706555463306,-548.28,0.00052054,31]
[312970149,1706555463315,-500.21324727,0.00052054,31]
[312970150,1706555463325,-206.12733506,0.00052054,31]
[312970151,1706555463334,-500.0,0.00052054,31]
[312970152,1706555463344,-500.0,0.00052054,31]
[312970153,1706555463353,-500.0,0.00052054,31]
[312970154,1706555463366,-536.93525457,0.00052054,31]
[312970155,1706555463375,-683.45,0.00052054,31]
[312970156,1706555463385,-1822.94,0.00052054,31]
[312970157,1706555463394,-500.0,0.00052054,31]
[312970158,1706555463403,-1473.39,0.00052054,31]
[312970159,1706555463415,-508.84934234,0.00052054,31]
[312970160,1706555463425,-500.0,0.00052054,31]
[312970161,1706555463436,-530.15,0.00052054,31]
[312970162,1706555463446,-1444.86,0.00052054,31]
[312970163,1706555463457,-520.8151245,0.00052054,31]
[312970164,1706555463467,-500.0,0.00052054,31]
[312970165,1706555463478,-534.72972686,0.00052054,31]
[312970166,1706555463487,-8308.29,0.00052054,31]
[312970167,1706555463496,-6118.84,0.00052054,31]
[312970168,1706555463506,-500.0,0.00052054,31]
[312970169,1706555463516,-515.77368752,0.00052054,31]
[312970170,1706555463525,-500.0,0.00052054,31]
[312970171,1706555463534,-502.1477542,0.00052054,7]
[312970172,1706555463544,-1250.06,0.00052054,31]
[312970173,1706555463554,-500.0,0.00052054,31]
[312970174,1706555463563,-1276.31,0.00052054,31]
[312970175,1706555463572,-500.0,0.00052054,31]
[312970176,1706555463581,-547.60708616,0.00052054,31]
[312970177,1706555463590,-500.0,0.00052054,31]
[312970178,1706555463600,-500.0,0.00052054,31]
[312970179,1706555463609,-525.8700036,0.00052054,31]
[312970180,1706555463619,-1183.2,0.00052054,31]
[312970181,1706555463628,-688.54,0.00052054,31]
[312970182,1706555463637,-500.0,0.00052054,31]
[312970183,1706555463646,-281.41481511,0.00052054,31]
[312970184,1706555463657,-529.9,0.00052054,31]
[312970185,1706555463666,-500.0,0.00052054,31]
[312970186,1706555463675,-181.77596122,0.00052054,31]
[312970187,1706555463684,-520.92067499,0.00052054,31]
[312970188,1706555463693,-1199.93,0.00052054,31]
[312970189,1706555463702,-541.58616165,0.00052054,31]
[312970190,1706555463711,-2972.7,0.00052054,5]
[312970191,1706555463722,-520.93103119,0.00052054,31]
[312970192,1706555463732,-500.0,0.00052054,31]
[312970193,1706555463742,-500.0,0.00052054,31]
[312970194,1706555463752,-543.96,0.00052054,31]
[312970195,1706555463763,-556.01553306,0.00052054,31]
[312970196,1706555463772,-1520.72,0.00052054,31]
[312970197,1706555463782,-1088.89,0.00052054,31]
[312970198,1706555463791,-500.0,0.00052054,31]
[312970199,1706555463800,-500.0,0.00052054,31]
[312970200,1706555463809,-1342.21,0.00052054,31]
[312970201,1706555463819,-513.84805601,0.00052054,31]
[312970202,1706555463829,-5151.43,0.00052054,31]
[312970203,1706555463839,-529.29703623,0.00052054,31]
[312970204,1706555463848,-1025.73767866,0.00052054,31]
[312970205,1706555463857,-1499.3,0.00052054,31]
[312970206,1706555463868,-2458.29,0.00052054,31]
[312970207,1706555463879,-500.0,0.00052054,31]
[312970208,1706555463888,-500.0,0.00052054,31]
[312970209,1706555463897,-500.0,0.00052054,31]
[312970210,1706555463907,-500.0,0.00052054,31]
[312970211,1706555463916,-1937.36,0.00052054,31]
[312970212,1706555463925,-500.0,0.00052054,31]
[312970213,1706555463934,-1067.69,0.00052054,31]
[312970214,1706555463944,-500.0,0.00052054,31]
[312970215,1706555463953,-500.0,0.00052054,31]
[312970216,1706555463963,-500.0,0.00052054,31]
[312970217,1706555463973,-510.05,0.00052054,31]
[312970218,1706555463982,-500.0,0.00052054,31]
[312970219,1706555463992,-500.0,0.00052054,31]
[312970220,1706555464001,-500.0,0.00052054,31]
[312970221,1706555464010,-500.0,0.00052054,31]
[312970222,1706555464020,-500.0,0.00052054,31]
[312970223,1706555464029,-500.0,0.00052054,31]
[312970224,1706555464039,-500.0,0.00052054,31]
[312970225,1706555464049,-500.0,0.00052054,31]
[312970226,1706555464058,-500.0,0.00052054,31]
[312970227,1706555464068,-500.0,0.00052054,31]
[312970228,1706555464078,-500.0,0.00052054,31]
[312970229,1706555464087,-500.0,0.00052054,31]
[312970230,1706555464097,-500.0,0.00052054,31]
[312970231,1706555464107,-500.0,0.00052054,31]
[312970232,1706555464116,-500.0,0.00052054,31]
[312970233,1706555464126,-457.50359824,0.00052054,31]
[312970234,1706555464135,-1142.79,0.00052054,31]
[312970235,1706555464145,-941.46,0.00052054,31]
[312970236,1706555464155,-518.37678834,0.00052054,31]
[312970237,1706555464166,-500.0,0.00052054,31]
[312970238,1706555464209,-910.97,0.00052054,31]
[312970239,1706555464220,-500.0,0.00052054,31]
[312970240,1706555464230,-531.8066155,0.00052054,31]
[312970241,1706555464240,-547.1472255,0.00052054,31]
[312970242,1706555464249,-2165.78,0.00052054,31]
[312970243,1706555464258,-1120.46,0.00052054,31]
[312970244,1706555464268,-500.0,0.00052054,31]
[312970245,1706555464277,-1272.33,0.00052054,31]
[312970246,1706555464286,-500.0,0.00052054,31]
[312970247,1706555464295,-500.0,0.00052054,31]
[312970248,1706555464304,-582.87,0.00052054,31]
[312970249,1706555464313,-526.46197385,0.00052054,31]
[312970250,1706555464322,-1439.87,0.00052054,31]
[312970251,1706555464331,-522.74280103,0.00052054,31]
[312970252,1706555464340,-2385.31,0.00052054,7]
[312970253,1706555464349,-508.58,0.00052054,31]
[312970254,1706555464359,-500.0,0.00052054,31]
[312970255,1706555464368,-155.4847448,0.00052054,31]
[312970256,1706555464377,-155.86524123,0.00052054,31]
[312970257,1706555464389,-1221.66,0.00052054,31]
[312970258,1706555464398,-2932.27,0.00052054,31]
[312970259,1706555464409,-518.02274591,0.00052054,31]
[312970260,1706555464417,-777.51,0.00052054,31]
[312970261,1706555464426,-500.0,0.00052054,31]
[312970262,1706555464435,-1588.69,0.00052054,31]
[312970263,1706555464445,-4584.08,0.00052054,31]
[312970264,1706555464454,-500.0,0.00052054,31]
[312970265,1706555464463,-1091.81,0.00052054,31]
[312970266,1706555464473,-682.66,0.00052054,31]
[312970267,1706555464482,-500.0,0.00052054,31]
[312970268,1706555464491,-278.86878213,0.00052054,31]
[312970269,1706555464500,-824.85,0.00052054,31]
[312970270,1706555464509,-500.0,0.00052054,31]
[312970271,1706555464518,-500.0,0.00052054,31]
[312970272,1706555464528,-500.0,0.00052054,31]
[312970273,1706555464537,-567.13,0.00052054,31]
[312970274,1706555464546,-500.0,0.00052054,31]
[312970275,1706555464555,-2378.07,0.00052054,31]
[312970276,1706555464565,-500.0,0.00052054,31]
[312970277,1706555464574,-500.0,0.00052054,31]
[312970278,1706555464583,-2533.96,0.00052054,31]
[312970279,1706555464592,-552.2,0.00052054,31]
[312970280,1706555464601,-2254.69,0.00052054,31]
[312970281,1706555464611,-1396.35,0.00052054,31]
[312970282,1706555464620,-562.5,0.00052054,120]
[312970283,1706555464629,-500.0,0.00052054,31]
[312970284,1706555464638,-2691.8,0.00052054,31]
[312970285,1706555464647,-500.0,0.00052054,31]
[312970286,1706555464656,-1875.99,0.00052054,31]
[312970287,1706555464665,-664.25,0.00052054,31]
[312970288,1706555464792,-500.0,0.00052054,31]
[312970289,1706555464802,-500.0,0.00052054,31]
[312970290,1706555464811,-500.0,0.00052054,31]
[312970291,1706555464820,-854.24,0.00052054,31]
[312970292,1706555464829,-1065.38,0.00052054,31]
[312970293,1706555464838,-500.0,0.00052054,14]
[312970294,1706555464847,-525.0363199,0.00052054,31]
[312970295,1706555464856,-1539.05,0.00052054,31]
[312970296,1706555464865,-1078.49,0.00052054,31]
[312970297,1706555464874,-500.0,0.00052054,31]
[312970298,1706555464883,-500.0,0.00052054,31]
[312970299,1706555464892,-500.0,0.00052054,31]
[312970300,1706555464902,-1432.27,0.00052054,31]
[312970301,1706555464911,-793.18,0.00052054,31]
[312970302,1706555464920,-500.0,0.00052054,31]
[312970303,1706555464929,-500.0,0.00052054,31]
[312970304,1706555464939,-500.0,0.00052054,31]
[312970305,1706555464948,-1687.85,0.00052054,31]
[312970306,1706555464958,-550.4,0.00052054,31]
[312970307,1706555464967,-246.76509503,0.00052054,31]
[312970308,1706555464977,-1459.05,0.00052054,31]
[312970309,1706555464986,-500.0,0.00052054,31]
[312970310,1706555464995,-856.68,0.00052054,31]
[312970311,1706555465005,-528.97403721,0.00052054,30]
[312970312,1706555465014,-1801.06,0.00052054,31]
[312970313,1706555465023,-521.31,0.00052054,31]
[312970314,1706555465033,-500.36,0.00052054,31]
[312970315,1706555465043,-500.0,0.00052054,31]
[312970316,1706555465053,-2768.81,0.00052054,31]
[312970317,1706555465062,-2028.2,0.00052054,31]
[312970318,1706555465072,-150.0,0.00052054,120]
[312970319,1706555465082,-1061.01,0.00052054,31]
[312970320,1706555465092,-500.0,0.00052054,31]
[312970321,1706555465101,-4776.92,0.00052054,31]
[312970322,1706555465111,-500.0,0.00052054,31]
[312970323,1706555465120,-500.0,0.00052054,31]
[312970324,1706555465130,-8068.44,0.00052054,31]
[312970325,1706555465140,-500.0,0.00052054,31]
[312970326,1706555465150,-755.75,0.00052054,31]
[312970327,1706555465159,-485.52986025,0.00052054,31]
[312970328,1706555465169,-1890.21,0.00052054,31]
[312970329,1706555465178,-500.0,0.00052054,31]
[312970330,1706555465187,-10545.5,0.00052054,31]
[312970331,1706555465197,-500.0,0.00052054,31]
[312970332,1706555465206,-500.0,0.00052054,31]
[312970333,1706555465216,-500.0,0.00052054,31]
[312970334,1706555465226,-500.0,0.00052054,31]
[312970335,1706555465235,-500.0,0.00052054,31]
[312970336,1706555465244,-500.0,0.00052054,31]
[312970337,1706555465254,-1188.41,0.00052054,31]
[312970338,1706555465263,-500.0,0.00052054,31]
[312970339,1706555465273,-500.0,0.00052054,31]
[312970340,1706555465282,-500.0,0.00052054,31]
[312970341,1706555465292,-1567.59,0.00052054,31]
[312970342,1706555465301,-500.0,0.00052054,31]
[312970343,1706555465311,-569.76,0.00052054,31]
[312970344,1706555465320,-500.0,0.00052054,31]
[312970345,1706555465329,-500.0,0.00052054,31]
[312970346,1706555465339,-500.0,0.00052054,31]
[312970347,1706555465348,-500.0,0.00052054,31]
[312970348,1706555465359,-670.15,0.00052054,31]
[312970349,1706555465369,-559.48,0.00052054,31]
[312970350,1706555465379,-1311.38,0.00052054,31]
[312970351,1706555465391,-594.65,0.00052054,31]
[312970352,1706555465400,-500.0,0.00052054,31]
[312970353,1706555465410,-160.87192608,0.00052054,31]
[312970354,1706555465419,-555.50386147,0.00052054,31]
[312970355,1706555465429,-500.0,0.00052054,31]
[312970356,1706555465438,-616.75151876,0.00052054,7]
[312970357,1706555465447,-635.4,0.00052054,31]
[312970358,1706555465458,-506.7862327,0.00052054,31]
[312970359,1706555465468,-500.0,0.00052054,31]
[312970360,1706555465477,-560.26,0.00052054,31]
[312970361,1706555465487,-500.0,0.00052054,31]
[312970362,1706555465497,-500.0,0.00052054,31]
[312970363,1706555465506,-500.0,0.00052054,31]
[312970364,1706555465515,-1929.94,0.00052054,31]
[312970365,1706555465526,-458.67164849,0.00052054,31]
[312970366,1706555465535,-2367.59,0.00052054,31]
[312970367,1706555465544,-500.0,0.00052054,31]
[312970368,1706555465554,-405.14554141,0.00052054,31]
[312970369,1706555465564,-829.43,0.00052054,31]
[312970370,1706555465573,-543.94525228,0.00052054,31]
[312970371,1706555465584,-584.86,0.00052054,31]
[312970372,1706555465594,-1110.02,0.00052054,31]
[312970373,1706555465603,-500.0,0.00052054,31]
[312970374,1706555465612,-500.0,0.00052054,31]
[312970375,1706555465621,-366.89588403,0.00052054,31]
[312970376,1706555465631,-1526.07,0.00052054,31]
[312970377,1706555465640,-553.43,0.00052054,2]
[312970378,1706555465649,-500.0,0.00052054,31]
[312970379,1706555465658,-4434.21,0.00052054,31]
[312970380,1706555465668,-599.1810654,0.00052054,31]
[312970381,1706555465678,-525.06,0.00052054,31]
[312970382,1706555465687,-1383.14,0.00052054,31]
[312970383,1706555465696,-500.0,0.00052054,31]
[312970384,1706555465705,-150.0,0.00052054,21]
[312970385,1706555465715,-883.77,0.00052054,31]
[312970386,1706555465724,-500.0,0.00052054,31]
[312970387,1706555465733,-500.0,0.00052054,31]
[312970388,1706555465743,-500.0,0.00052054,31]
[312970389,1706555465752,-500.0,0.00052054,31]
[312970390,1706555465761,-1687.6,0.00052054,31]
[312970391,1706555465770,-1051.41,0.00052054,31]
[312970392,1706555465779,-711.22,0.00052054,31]
[312970393,1706555465788,-1615.63,0.00052054,31]
[312970394,1706555465797,-1067.36,0.00052054,31]
[312970395,1706555465807,-4000.0,0.00052054,2]
[312970396,1706555465816,-500.0,0.00052055,30]
[312970397,1706555465826,-152.62701089,0.00052055,2]
[312970398,1706555465835,-368.0,0.0005206,6]
[312970399,1706555465844,-11630.977078,0.00052064,2]
[312970400,1706555465853,-4154.2294109,0.00052064,2]
[312970401,1706555465862,-48066.67265432,0.00052064,2]
[312970402,1706555466278,-259.83564,0.0005199,14]
[312970403,1706555466288,-1000.67880418,0.00052064,2]
[312970404,1706555466300,-851.12059858,0.00052064,2]
[312970405,1706555466732,-1441.2503602,0.00028695,2]
[312970406,1706555466791,-296.70910045,0.00028695,2]
[312970407,1706555467262,-221.67323375,0.00022827,2]
[312970408,1706555467272,-677.3483605,0.00028694,2]
[312970409,1706555467282,-278.76053935,0.00028695,2]
[312970410,1706555467291,-2016.72,0.00029719,2]
[312970411,1706555467301,-603.25180595,0.00030743,2]
[312970412,1706555467329,-1413.46819405,0.00030743,2]
[312970413,1706555467338,-2016.72,0.00031767,2]
[312970414,1706555467348,-758.0,0.00035342,2]
[312970415,1706555467358,-2333.83348103,0.000388,2]
[312970416,1706555467368,-168.37551201,0.00039093,30]
[312970417,1706555467379,-259.83564,0.00041096,14]
[312970418,1706555467390,-259.83564,0.00042,14]
[312970419,1706555467409,-25000.0,0.000458,2]
[312970420,1706555467430,-259.83564,0.00048,14]
[312970421,1706555467448,-259.83564,0.0004882,14]
[312970422,1706555467470,-151.0,0.000499,14]
[312970423,1706555467490,-276.577304,0.000499,14]
[312970424,1706555467510,-259.83564,0.000499,14]
[312970425,1706555467529,-259.83564,0.000499,14]
[312970426,1706555467545,-259.83564,0.000499,14]
[312970427,1706555467565,-259.83564,0.0005199,14]
[312970428,1706555467583,-500.0,0.00052054,31]
[312970429,1706555467600,-500.0,0.00052054,31]
[312970430,1706555467619,-500.0,0.00052054,31]
[312970431,1706555467638,-500.0,0.00052054,31]
[312970432,1706555467650,-26662.99396823,0.00052064,2]
[312970433,1706555467670,-3740.77611261,0.00052064,2]
[312970434,1706555468007,-250.0,0.00029472,2]
[312970435,1706555468022,-341.35068759,0.0003787,2]
[312970436,1706555468039,-173.21547153,0.0003787,2]
[312970437,1706555468054,-101.55567616,0.00052064,2]
[312970438,1706555468079,-15059.5974282,0.00052064,2]
[312970439,1706555479162,8613.9318,0.00022448,2]
[312970440,1706555590348,-178.94563572,0.000228,2]
[312970441,1706555590370,-221.67323375,0.00022852,2]
[312970442,1706555590392,-221.67323375,0.00022877,2]
[312970443,1706555627352,-221.67323375,0.00022903,2]
[312970444,1706555627374,-78.32676625,0.00022928,2]
[312970445,1706555676743,-143.3464675,0.00022928,2]
[312970466,1706556632065,-174.41982976,0.00024999,2]
[312970467,1706556632075,-550.0,0.00025,3]
[312970468,1706556632084,-546.24017024,0.00027,3]
[312970469,1706556632153,-53.75982976,0.00027,3]
[312970470,1706556632162,-155.89,0.00027397,2]
[312970471,1706556632171,-155.89,0.00028493,2]
[312970472,1706556632180,-167.64,0.00028494,2]
[312970474,1706556632190,-228.75937488,0.00028693,2]
[312970475,1706556632199,-650.0,0.00029,3]
[312970477,1706556632208,-155.89,0.00029589,2]
[312970479,1706556632220,-157.92669789,0.000299,2]
[312970481,1706556632229,-499.99,0.000299,2]
[312970483,1706556632238,-585.67299216,0.0003,2]
[312970485,1706556632247,-984.23231862,0.0003,4]
[312970487,1706556632258,-1002.12804557,0.0003,4]
[312970489,1706556632270,-351.48000001,0.0003,4]
[312970491,1706556632280,-2623.65594129,0.0003,4]
[312970493,1706556632289,-155.0,0.00030023,2]
[312970494,1706556632299,-141.42536477,0.00030024,3]
[312970503,1706556637997,-64.47042623,0.00030024,3]
[312970504,1706556638006,-155.89,0.00030685,2]
[312970505,1706556638015,-700.0,0.00031,3]
[312970506,1706556638024,-155.89,0.00031781,2]
[312970507,1706556638033,-2628.16018064,0.00031841,6]
[312970508,1706556638043,-290.98355262,0.00031841,6]
[312970509,1706556638065,-331.99314566,0.00031841,6]
[312970510,1706556638287,-596.05964064,0.00031841,6]
[312970511,1706556638298,-545.15386629,0.00031841,6]
[312970512,1706556638320,-1059.53492,0.00031841,6]
[312970541,1706556640601,-849.41657318,0.00031841,6]
[312970542,1706556641347,-263.703,0.00031841,6]
[312970543,1706556641360,-9601.09080772,0.00031841,6]
[312970544,1706556641370,-187.59119664,0.00031841,6]
[312970545,1706556641379,-482.05765171,0.00031841,6]
[312970546,1706556641389,-289.23459103,0.00031841,6]
[312970547,1706556641398,-362.8,0.00032268,2]
[312970548,1706556641407,-374.0,0.00032325,3]
[312970549,1706556641416,-896.622,0.00032327,2]
[312970550,1706556641425,-837.0,0.00032327,2]
[312970551,1706556641434,-56.71515331,0.00032327,2]
[312970552,1706556641446,-1689.95371135,0.00032327,2]
[312970553,1706556641457,-111.33113534,0.00032327,2]
[312970554,1706556641467,-276.39620427,0.00032327,2]
[312970555,1706556641479,-727.69479573,0.00032327,2]
[312970556,1706556641488,-899.7205191,0.00032327,2]
[312970557,1706556641500,-1038.2794809,0.00032327,2]
[312970558,1706556641509,-200.0,0.00032427,3]
[312970559,1706556641518,-250.0,0.00032696,2]
[312970560,1706556641528,-170.92,0.00032766,2]
[312970561,1706556641537,-1335.94093284,0.00032782,2]
[312970562,1706556641624,-356.19588052,0.00032782,2]
[312970587,1706556643096,-498.93790015,0.00032782,2]
[312970588,1706556643108,-998.54050598,0.00032782,2]
[312970589,1706556643119,-10553.9655,0.00032782,2]
[312970590,1706556643153,-10136.41928051,0.00032782,2]
[312970591,1706556643163,-155.89,0.00032877,2]
[312970592,1706556643172,-750.0,0.00033,3]
[312970593,1706556643182,-150.0,0.00033064,2]
[312970594,1706556643191,-320.0,0.00033205,2]
[312970595,1706556643201,-226.24,0.00033221,2]
[312970596,1706556643211,-296.74,0.00034517,2]
[312970597,1706556643220,-362.8,0.00034532,2]
[312970598,1706556643231,-800.0,0.00035,3]
[312970599,1706556643242,-219.8025642,0.00035,2]
[312970600,1706556643253,-915.15402733,0.00035,2]
[312970601,1706556643273,-920.88836545,0.00035,2]
[312970602,1706556643284,-944.15504302,0.00035,2]
[312970603,1706556643294,-667.86705614,0.00035,7]
[312970604,1706556643306,-2390.25597096,0.00035,7]
[312970605,1706556643326,-293.51421104,0.00035,7]
[312970639,1706556646175,-860.0,0.00033205,2]
[312970640,1706556646186,-1648.36276186,0.00035,7]
[312970641,1706556646195,-296.22069967,0.00035,3]
[312970642,1706556646206,-450.0,0.00035,3]
[312970643,1706556646215,-410.48178216,0.00035437,4]
[312970644,1706556646225,-204.7712179,0.00035498,4]
[312970645,1706556646236,-474.09820608,0.00035499,4]
[312970646,1706556646245,-1833.18,0.000355,3]
[312970647,1706556646255,-1833.18,0.000355,3]
[312970648,1706556646265,-1833.18,0.000355,3]
[312970649,1706556646275,-1833.18,0.000355,3]
[312970650,1706556646285,-1833.18,0.000355,3]
[312970651,1706556646294,-1833.18,0.000355,3]
[312970652,1706556646304,-1833.18,0.000355,3]
[312970653,1706556646313,-1833.18,0.000355,3]
[312970654,1706556646322,-1833.18,0.000355,3]
[312970655,1706556646332,-1833.18,0.000355,3]
[312970656,1706556646341,-1833.18,0.000355,3]
[312970657,1706556646351,-1833.18,0.000355,3]
[312970658,1706556646360,-1833.18,0.000355,3]
[312970659,1706556646371,-1833.18,0.000355,3]
[312970660,1706556646380,-1833.18,0.000355,3]
[312970661,1706556646390,-1833.18,0.000355,3]
[312970662,1706556646400,-1833.18,0.000355,3]
[312970663,1706556646409,-1833.18,0.000355,3]
[312970664,1706556646419,-1833.18,0.000355,3]
[312970665,1706556646428,-1833.18,0.000355,3]
[312970666,1706556646438,-153.75,0.000355,3]
[312970667,1706556646447,-1000.0,0.00035606,2]